[Event "Late-Titled-Tuesday-Blitz-January-30-2024"]
[Site "Chess.com"]
[Date "2024.01.30"]
[Round "8"]
[White "Mops_2004"]
[Black "vesalhamedinia"]
[Result "1-0"]
[WhiteElo "2773"]
[BlackElo "2501"]
[TimeControl "180+1"]
[EndTime "15:29:04 PST"]
[Termination "Mops_2004 won by checkmate"]

1. f4 {[%clk 0:03:00.9]} 1... d5 {[%clk 0:02:59.5]} 2. Nf3 {[%clk 0:03:00.7]}
2... c5 {[%clk 0:02:59.5]} 3. e3 {[%clk 0:02:59]} 3... Nf6 {[%clk 0:02:59.7]} 4.
b3 {[%clk 0:02:56.6]} 4... Nc6 {[%clk 0:02:59.3]} 5. Bb5 {[%clk 0:02:54.2]} 5...
Qc7 {[%clk 0:02:55.8]} 6. Ne5 {[%clk 0:02:52.3]} 6... Bd7 {[%clk 0:02:56.4]} 7.
Nxd7 {[%clk 0:02:51.3]} 7... Nxd7 {[%clk 0:02:57.3]} 8. Bb2 {[%clk 0:02:47.4]}
8... e6 {[%clk 0:02:56.1]} 9. O-O {[%clk 0:02:46.2]} 9... a6 {[%clk 0:02:55.7]}
10. Be2 {[%clk 0:02:44.3]} 10... Nf6 {[%clk 0:02:52.1]} 11. d3 {[%clk
0:02:40.6]} 11... Be7 {[%clk 0:02:51.8]} 12. Nd2 {[%clk 0:02:40.4]} 12... O-O
{[%clk 0:02:52]} 13. g4 {[%clk 0:02:32.4]} 13... d4 {[%clk 0:02:52.1]} 14. e4
{[%clk 0:02:29.9]} 14... b5 {[%clk 0:02:52.2]} 15. g5 {[%clk 0:02:23]} 15... Ne8
{[%clk 0:02:52.3]} 16. h4 {[%clk 0:02:21.8]} 16... f6 {[%clk 0:02:52.5]} 17. Kg2
{[%clk 0:02:16.1]} 17... fxg5 {[%clk 0:02:50.8]} 18. fxg5 {[%clk 0:02:16.3]}
18... Ne5 {[%clk 0:02:43.5]} 19. Bg4 {[%clk 0:01:55.9]} 19... Qd6 {[%clk
0:02:37.2]} 20. Bh3 {[%clk 0:01:23.3]} 20... Ng6 {[%clk 0:02:29.2]} 21. Rxf8+
{[%clk 0:01:19.7]} 21... Bxf8 {[%clk 0:02:28.2]} 22. Qg4 {[%clk 0:01:18.5]}
22... Nf4+ {[%clk 0:02:23.7]} 23. Kh1 {[%clk 0:01:18.6]} 23... e5 {[%clk
0:02:06.5]} 24. a4 {[%clk 0:01:15.1]} 24... Nc7 {[%clk 0:02:04]} 25. Nf3 {[%clk
0:00:55.9]} 25... Re8 {[%clk 0:01:41]} 26. axb5 {[%clk 0:00:53.8]} 26... axb5
{[%clk 0:01:41.9]} 27. Bc1 {[%clk 0:00:38.3]} 27... Nxh3 {[%clk 0:01:35.6]} 28.
Qxh3 {[%clk 0:00:37.6]} 28... c4 {[%clk 0:01:22.5]} 29. Ba3 {[%clk 0:00:16.7]}
29... b4 {[%clk 0:01:21.5]} 30. Bc1 {[%clk 0:00:15.5]} 30... cxd3 {[%clk
0:01:21.7]} 31. cxd3 {[%clk 0:00:15.6]} 31... Nb5 {[%clk 0:01:21.9]} 32. Bd2
{[%clk 0:00:12.1]} 32... Nc3 {[%clk 0:01:21.8]} 33. h5 {[%clk 0:00:09.5]} 33...
Qc6 {[%clk 0:01:04.4]} 34. Qf5 {[%clk 0:00:06.1]} 34... Qe6 {[%clk 0:00:53.4]}
35. Qxe6+ {[%clk 0:00:05.7]} 35... Rxe6 {[%clk 0:00:54.3]} 36. Ra5 {[%clk
0:00:05.3]} 36... Bd6 {[%clk 0:00:49.2]} 37. Ra6 {[%clk 0:00:05.3]} 37... Kf7
{[%clk 0:00:45.6]} 38. g6+ {[%clk 0:00:05.6]} 38... hxg6 {[%clk 0:00:28.8]} 39.
Ng5+ {[%clk 0:00:04.9]} 39... Kf6 {[%clk 0:00:29.5]} 40. Nxe6 {[%clk 0:00:05.6]}
40... Kxe6 {[%clk 0:00:30.4]} 41. hxg6 {[%clk 0:00:05.6]} 41... Ke7 {[%clk
0:00:25.4]} 42. Kg2 {[%clk 0:00:05.8]} 42... Ne2 {[%clk 0:00:20.3]} 43. Bg5+
{[%clk 0:00:04.7]} 43... Ke6 {[%clk 0:00:18.5]} 44. Kf3 {[%clk 0:00:04]} 44...
Ng1+ {[%clk 0:00:16.7]} 45. Kf2 {[%clk 0:00:03.7]} 45... Nh3+ {[%clk 0:00:16.9]}
46. Kf3 {[%clk 0:00:03.4]} 46... Nxg5+ {[%clk 0:00:17.8]} 47. Kg4 {[%clk
0:00:04.1]} 47... Nxe4 {[%clk 0:00:15.4]} 48. dxe4 {[%clk 0:00:05]} 48... d3
{[%clk 0:00:14.6]} 49. Kf3 {[%clk 0:00:04.5]} 49... Ke7 {[%clk 0:00:12.9]} 50.
Ke3 {[%clk 0:00:04.3]} 50... Bc5+ {[%clk 0:00:13.6]} 51. Kxd3 {[%clk 0:00:04.7]}
51... Bd4 {[%clk 0:00:14.2]} 52. Kc4 {[%clk 0:00:05.1]} 52... Bc3 {[%clk
0:00:14.6]} 53. Kd5 {[%clk 0:00:05.2]} 53... Bd4 {[%clk 0:00:13.9]} 54. Re6+
{[%clk 0:00:04.9]} 54... Kd7 {[%clk 0:00:14.4]} 55. Rxe5 {[%clk 0:00:04.1]}
55... Bxe5 {[%clk 0:00:13.3]} 56. Kxe5 {[%clk 0:00:05]} 56... Ke7 {[%clk
0:00:14.2]} 57. Kd5 {[%clk 0:00:04.9]} 57... Kd7 {[%clk 0:00:14.8]} 58. e5
{[%clk 0:00:05.2]} 58... Ke7 {[%clk 0:00:15.5]} 59. e6 {[%clk 0:00:05.1]} 59...
Kd8 {[%clk 0:00:14.4]} 60. Kd6 {[%clk 0:00:05.5]} 60... Ke8 {[%clk 0:00:14.9]}
61. Kc5 {[%clk 0:00:05.6]} 61... Ke7 {[%clk 0:00:15.2]} 62. Kxb4 {[%clk
0:00:06.5]} 62... Kxe6 {[%clk 0:00:15.5]} 63. Ka5 {[%clk 0:00:07]} 63... Kf6
{[%clk 0:00:16.4]} 64. b4 {[%clk 0:00:07.9]} 64... Kxg6 {[%clk 0:00:17.3]} 65.
b5 {[%clk 0:00:08.8]} 65... Kh5 {[%clk 0:00:18.2]} 66. b6 {[%clk 0:00:09.7]}
66... g5 {[%clk 0:00:19.1]} 67. b7 {[%clk 0:00:10.6]} 67... g4 {[%clk 0:00:20]}
68. b8=Q {[%clk 0:00:11.5]} 68... Kh4 {[%clk 0:00:20.4]} 69. Qh2+ {[%clk
0:00:11.8]} 69... Kg5 {[%clk 0:00:21]} 70. Qg3 {[%clk 0:00:12.7]} 70... Kf5
{[%clk 0:00:21.6]} 71. Kb4 {[%clk 0:00:13.6]} 71... Kg5 {[%clk 0:00:22.2]} 72.
Kc4 {[%clk 0:00:14.5]} 72... Kf5 {[%clk 0:00:22]} 73. Kd4 {[%clk 0:00:15.4]}
73... Kg5 {[%clk 0:00:22.6]} 74. Ke4 {[%clk 0:00:15.9]} 74... Kh5 {[%clk
0:00:23.3]} 75. Kf4 {[%clk 0:00:16.3]} 75... Kh6 {[%clk 0:00:24]} 76. Qxg4
{[%clk 0:00:16.4]} 76... Kh7 {[%clk 0:00:23.9]} 77. Kf5 {[%clk 0:00:17.3]} 77...
Kh6 {[%clk 0:00:24.5]} 78. Qg6# {[%clk 0:00:16.9]} 1-0

[Event "Late-Titled-Tuesday-Blitz-January-30-2024"]
[Site "Chess.com"]
[Date "2024.01.30"]
[Round "9"]
[White "dennisodessa"]
[Black "GiorgianBarbosa"]
[Result "0-1"]
[WhiteElo "2584"]
[BlackElo "2475"]
[TimeControl "180+1"]
[EndTime "15:40:26 PST"]
[Termination "GiorgianBarbosa won by resignation"]

1. d4 {[%clk 0:03:00.3]} 1... Nf6 {[%clk 0:02:59.3]} 2. c4 {[%clk 0:02:58.6]}
2... g6 {[%clk 0:03:00.2]} 3. Nc3 {[%clk 0:02:59.1]} 3... Bg7 {[%clk 0:03:01.1]}
4. e4 {[%clk 0:02:59.8]} 4... O-O {[%clk 0:03:02]} 5. f3 {[%clk 0:03:00.4]} 5...
d6 {[%clk 0:03:02.9]} 6. Be3 {[%clk 0:03:01]} 6... a6 {[%clk 0:03:02.4]} 7. Qd2
{[%clk 0:03:01.2]} 7... e5 {[%clk 0:03:03]} 8. d5 {[%clk 0:03:01]} 8... h5
{[%clk 0:03:00.9]} 9. Bd3 {[%clk 0:03:00.5]} 9... c6 {[%clk 0:02:57.1]} 10. Nge2
{[%clk 0:03:00.3]} 10... b5 {[%clk 0:02:51.3]} 11. O-O {[%clk 0:02:48.3]} 11...
b4 {[%clk 0:02:45.7]} 12. Na4 {[%clk 0:02:47.1]} 12... c5 {[%clk 0:02:44.2]} 13.
a3 {[%clk 0:02:47]} 13... a5 {[%clk 0:02:44.3]} 14. axb4 {[%clk 0:02:46.5]}
14... axb4 {[%clk 0:02:45.2]} 15. Ra2 {[%clk 0:02:16]} 15... Nh7 {[%clk
0:02:39.9]} 16. Rfa1 {[%clk 0:02:11.2]} 16... f5 {[%clk 0:02:38.5]} 17. Nxc5
{[%clk 0:02:07.6]} 17... Rxa2 {[%clk 0:02:34]} 18. Rxa2 {[%clk 0:02:08.5]} 18...
dxc5 {[%clk 0:02:28.7]} 19. Bxc5 {[%clk 0:02:09.4]} 19... Na6 {[%clk 0:02:22.8]}
20. Bxb4 {[%clk 0:02:05.1]} 20... Qb6+ {[%clk 0:02:15.8]} 21. c5 {[%clk
0:02:02.4]} 21... Qxb4 {[%clk 0:02:15.4]} 22. Qxb4 {[%clk 0:01:56.9]} 22... Nxb4
{[%clk 0:02:16.3]} 23. Ra3 {[%clk 0:01:56.9]} 23... Nxd3 {[%clk 0:02:14.8]} 24.
Rxd3 {[%clk 0:01:57.8]} 24... Ba6 {[%clk 0:02:08.3]} 25. Rd2 {[%clk 0:01:57]}
25... Bh6 {[%clk 0:02:05.8]} 26. f4 {[%clk 0:01:55.8]} 26... fxe4 {[%clk
0:01:59.3]} 0-1

[Event "Late-Titled-Tuesday-Blitz-January-30-2024"]
[Site "Chess.com"]
[Date "2024.01.30"]
[Round "9"]
[White "ccccvhhhj"]
[Black "Arteler"]
[Result "0-1"]
[WhiteElo "2425"]
[BlackElo "2570"]
[TimeControl "180+1"]
[EndTime "15:41:17 PST"]
[Termination "Arteler won by resignation"]

1. e4 {[%clk 0:03:00.9]} 1... e6 {[%clk 0:03:00.2]} 2. Nf3 {[%clk 0:03:01.3]}
2... d5 {[%clk 0:02:59.8]} 3. e5 {[%clk 0:03:02]} 3... c5 {[%clk 0:02:59.4]} 4.
b4 {[%clk 0:03:02.5]} 4... cxb4 {[%clk 0:03:00.1]} 5. a3 {[%clk 0:03:03.1]} 5...
bxa3 {[%clk 0:03:01]} 6. Nxa3 {[%clk 0:03:04]} 6... Nc6 {[%clk 0:02:57.3]} 7. c3
{[%clk 0:03:03.4]} 7... f6 {[%clk 0:02:49.9]} 8. d4 {[%clk 0:03:03.5]} 8... Nge7
{[%clk 0:02:47.7]} 9. Bd3 {[%clk 0:03:02.4]} 9... fxe5 {[%clk 0:02:46.6]} 10.
dxe5 {[%clk 0:03:03.3]} 10... Ng6 {[%clk 0:02:44.2]} 11. Qe2 {[%clk 0:02:59.2]}
11... Be7 {[%clk 0:02:42]} 12. Nb5 {[%clk 0:02:53.8]} 12... O-O {[%clk
0:02:41.3]} 13. O-O {[%clk 0:02:52.1]} 13... Bd7 {[%clk 0:02:39.6]} 14. Bxg6
{[%clk 0:02:48.7]} 14... hxg6 {[%clk 0:02:40.5]} 15. Nbd4 {[%clk 0:02:49.3]}
15... g5 {[%clk 0:02:36.8]} 16. Ba3 {[%clk 0:02:39.3]} 16... Bxa3 {[%clk
0:02:31.2]} 17. Rxa3 {[%clk 0:02:39.1]} 17... g4 {[%clk 0:02:31.9]} 18. Nd2
{[%clk 0:02:29.1]} 18... Qg5 {[%clk 0:02:32.5]} 19. Nxc6 {[%clk 0:02:10]} 19...
Bxc6 {[%clk 0:02:33.4]} 20. Nb3 {[%clk 0:02:09.9]} 20... Rf5 {[%clk 0:02:31.4]}
21. Nd4 {[%clk 0:01:51.3]} 21... Rxe5 {[%clk 0:02:31.9]} 22. Qd3 {[%clk
0:01:46.3]} 22... Qf4 {[%clk 0:02:26.5]} 23. Raa1 {[%clk 0:01:40.8]} 23... a5
{[%clk 0:02:23.9]} 24. Rfe1 {[%clk 0:01:37]} 24... Rxe1+ {[%clk 0:02:16.5]} 25.
Rxe1 {[%clk 0:01:37.9]} 25... e5 {[%clk 0:02:17.4]} 26. Ne6 {[%clk 0:01:26]}
26... Qf6 {[%clk 0:02:17.4]} 27. Nc5 {[%clk 0:01:20.2]} 27... a4 {[%clk
0:02:17.8]} 28. c4 {[%clk 0:01:17.1]} 28... d4 {[%clk 0:02:17.2]} 29. Ne4 {[%clk
0:01:15]} 29... Qf5 {[%clk 0:02:15.5]} 30. c5 {[%clk 0:01:08]} 30... Bxe4 {[%clk
0:02:12.9]} 31. Rxe4 {[%clk 0:01:06.7]} 31... a3 {[%clk 0:02:13.3]} 32. Re1
{[%clk 0:01:05.1]} 32... Qxd3 {[%clk 0:02:12.9]} 0-1

[Event "Late-Titled-Tuesday-Blitz-January-30-2024"]
[Site "Chess.com"]
[Date "2024.01.30"]
[Round "9"]
[White "Pingah9"]
[Black "SnekkerAndersen"]
[Result "0-1"]
[WhiteElo "2536"]
[BlackElo "2643"]
[TimeControl "180+1"]
[EndTime "15:41:24 PST"]
[Termination "SnekkerAndersen won by resignation"]

1. e4 {[%clk 0:03:00.9]} 1... a6 {[%clk 0:02:58.2]} 2. Bc4 {[%clk 0:02:58.8]}
2... h6 {[%clk 0:02:59.1]} 3. d4 {[%clk 0:02:53]} 3... e6 {[%clk 0:02:59.5]} 4.
Nf3 {[%clk 0:02:52]} 4... d6 {[%clk 0:02:59.7]} 5. O-O {[%clk 0:02:51.7]} 5...
Nc6 {[%clk 0:02:59.8]} 6. c3 {[%clk 0:02:51.4]} 6... Bd7 {[%clk 0:03:00]} 7. Qe2
{[%clk 0:02:51.5]} 7... e5 {[%clk 0:02:59.7]} 8. Rd1 {[%clk 0:02:50.7]} 8... Nf6
{[%clk 0:02:56.7]} 9. h3 {[%clk 0:02:48.5]} 9... Qc8 {[%clk 0:02:56]} 10. Kh2
{[%clk 0:02:47.7]} 10... g5 {[%clk 0:02:51.9]} 11. dxe5 {[%clk 0:02:23.8]} 11...
dxe5 {[%clk 0:02:51.5]} 12. Nfd2 {[%clk 0:02:17]} 12... g4 {[%clk 0:02:43.4]}
13. h4 {[%clk 0:02:16.6]} 13... Bd6 {[%clk 0:02:41.2]} 14. Nf1 {[%clk
0:02:15.7]} 14... Nh5 {[%clk 0:02:36.4]} 15. g3 {[%clk 0:02:11.5]} 15... Be6
{[%clk 0:02:36.1]} 16. Nbd2 {[%clk 0:02:08.6]} 16... Qd7 {[%clk 0:02:36]} 17. b4
{[%clk 0:02:03.7]} 17... O-O-O {[%clk 0:02:28.9]} 18. a4 {[%clk 0:02:01.4]}
18... Nf4 {[%clk 0:02:26.8]} 19. Qe3 {[%clk 0:01:53.1]} 19... Qe7 {[%clk
0:02:14.1]} 20. b5 {[%clk 0:01:42.6]} 20... Na5 {[%clk 0:02:12.8]} 21. Bxe6+
{[%clk 0:01:15.6]} 21... fxe6 {[%clk 0:02:12.7]} 22. bxa6 {[%clk 0:01:07.2]}
22... Bc5 {[%clk 0:02:12.7]} 23. axb7+ {[%clk 0:01:06.4]} 23... Kb8 {[%clk
0:02:12.8]} 24. Qe1 {[%clk 0:01:00.6]} 24... Nd3 {[%clk 0:02:08]} 25. Qe2 {[%clk
0:01:00.6]} 25... Rhf8 {[%clk 0:02:04.4]} 0-1

[Event "Late-Titled-Tuesday-Blitz-January-30-2024"]
[Site "Chess.com"]
[Date "2024.01.30"]
[Round "9"]
[White "otrov-11"]
[Black "rcmz"]
[Result "0-1"]
[WhiteElo "2465"]
[BlackElo "2162"]
[TimeControl "180+1"]
[EndTime "15:41:43 PST"]
[Termination "rcmz won by checkmate"]

1. e4 {[%clk 0:02:56]} 1... Nf6 {[%clk 0:02:59]} 2. Nc3 {[%clk 0:02:53.8]} 2...
d5 {[%clk 0:02:57.9]} 3. e5 {[%clk 0:02:40.6]} 3... d4 {[%clk 0:02:50.1]} 4.
exf6 {[%clk 0:02:27.5]} 4... dxc3 {[%clk 0:02:49.6]} 5. bxc3 {[%clk 0:02:18.5]}
5... gxf6 {[%clk 0:02:48.4]} 6. Nf3 {[%clk 0:02:16.7]} 6... e5 {[%clk
0:02:47.5]} 7. d3 {[%clk 0:02:12.5]} 7... Bg4 {[%clk 0:02:45.8]} 8. Be2 {[%clk
0:02:08.2]} 8... Nc6 {[%clk 0:02:45.4]} 9. Nh4 {[%clk 0:02:08.2]} 9... Be6
{[%clk 0:02:40.7]} 10. Bg4 {[%clk 0:01:54.5]} 10... Qd7 {[%clk 0:02:38.7]} 11.
Bxe6 {[%clk 0:01:53.1]} 11... Qxe6 {[%clk 0:02:38.2]} 12. Qf3 {[%clk 0:01:53.1]}
12... O-O-O {[%clk 0:02:21]} 13. O-O {[%clk 0:01:51.2]} 13... Ne7 {[%clk
0:02:06.9]} 14. Ba3 {[%clk 0:01:43.2]} 14... Ng6 {[%clk 0:01:56.7]} 15. Nf5
{[%clk 0:01:39.9]} 15... Bxa3 {[%clk 0:01:54.7]} 16. Rab1 {[%clk 0:01:31.5]}
16... Qc6 {[%clk 0:01:54.7]} 17. Qg4 {[%clk 0:01:19]} 17... Kb8 {[%clk
0:01:51.1]} 18. g3 {[%clk 0:01:14]} 18... h5 {[%clk 0:01:48.6]} 19. Qe2 {[%clk
0:01:07.2]} 19... h4 {[%clk 0:01:45.4]} 20. f3 {[%clk 0:01:03.7]} 20... hxg3
{[%clk 0:01:44.3]} 21. hxg3 {[%clk 0:01:04.6]} 21... Rdg8 {[%clk 0:01:39.9]} 22.
Qe4 {[%clk 0:01:02.5]} 22... Qxe4 {[%clk 0:01:35.9]} 23. dxe4 {[%clk 0:01:00.8]}
23... Bc5+ {[%clk 0:01:33.2]} 24. Kg2 {[%clk 0:00:51.2]} 24... Nf4# {[%clk
0:01:32.5]} 0-1

[Event "Late-Titled-Tuesday-Blitz-January-30-2024"]
[Site "Chess.com"]
[Date "2024.01.30"]
[Round "9"]
[White "JakubPulpan"]
[Black "temus_galaktionov"]
[Result "1-0"]
[WhiteElo "2724"]
[BlackElo "2873"]
[TimeControl "180+1"]
[EndTime "15:41:44 PST"]
[Termination "JakubPulpan won by resignation"]

1. a3 {[%clk 0:02:50.6]} 1... c6 {[%clk 0:03:00.9]} 2. b4 {[%clk 0:02:43.2]}
2... d6 {[%clk 0:03:01.3]} 3. Bb2 {[%clk 0:02:36.6]} 3... Nd7 {[%clk 0:03:02.2]}
4. d4 {[%clk 0:02:36.3]} 4... Ngf6 {[%clk 0:03:02.7]} 5. Nf3 {[%clk 0:02:34]}
5... g6 {[%clk 0:03:03.1]} 6. Nbd2 {[%clk 0:02:34.2]} 6... Bg7 {[%clk
0:03:03.7]} 7. e4 {[%clk 0:02:34.9]} 7... O-O {[%clk 0:03:03.7]} 8. Be2 {[%clk
0:02:35.3]} 8... a5 {[%clk 0:03:02.6]} 9. O-O {[%clk 0:02:28.2]} 9... b5 {[%clk
0:02:50.3]} 10. a4 {[%clk 0:02:19]} 10... bxa4 {[%clk 0:02:20.9]} 11. Rxa4
{[%clk 0:02:19.9]} 11... Bb7 {[%clk 0:02:21]} 12. c4 {[%clk 0:02:08.6]} 12...
axb4 {[%clk 0:02:19.7]} 13. Rxb4 {[%clk 0:02:09.5]} 13... Qc7 {[%clk 0:02:19.6]}
14. e5 {[%clk 0:02:04.5]} 14... dxe5 {[%clk 0:02:13.4]} 15. dxe5 {[%clk
0:02:05.4]} 15... Ng4 {[%clk 0:02:13]} 16. e6 {[%clk 0:01:58.5]} 16... fxe6
{[%clk 0:02:13.9]} 17. Bxg7 {[%clk 0:01:57.6]} 17... Kxg7 {[%clk 0:02:14.8]} 18.
c5 {[%clk 0:01:50.9]} 18... Ngf6 {[%clk 0:02:08.7]} 19. Ng5 {[%clk 0:01:37.2]}
19... Nxc5 {[%clk 0:02:04]} 20. Nb3 {[%clk 0:01:25.4]} 20... Nfd7 {[%clk
0:02:03.4]} 21. Nxc5 {[%clk 0:01:22.6]} 21... Nxc5 {[%clk 0:02:04.3]} 22. Qd4+
{[%clk 0:01:22.8]} 22... Kg8 {[%clk 0:01:40.7]} 23. Qxc5 {[%clk 0:01:21.7]}
23... Rf5 {[%clk 0:01:40.1]} 24. Qe3 {[%clk 0:01:12.1]} 24... Re5 {[%clk
0:01:32.9]} 25. Qg3 {[%clk 0:01:10.4]} 25... Rc8 {[%clk 0:01:23.4]} 26. Rxb7
{[%clk 0:01:09.1]} 1-0

[Event "Late-Titled-Tuesday-Blitz-January-30-2024"]
[Site "Chess.com"]
[Date "2024.01.30"]
[Round "9"]
[White "Orest_Vovk"]
[Black "AsaHoffmann"]
[Result "1-0"]
[WhiteElo "2500"]
[BlackElo "2352"]
[TimeControl "180+1"]
[EndTime "15:41:45 PST"]
[Termination "Orest_Vovk won by resignation"]

1. h4 {[%clk 0:02:57.3]} 1... e5 {[%clk 0:02:57.1]} 2. h5 {[%clk 0:02:54]} 2...
d5 {[%clk 0:02:56.4]} 3. h6 {[%clk 0:02:43.5]} 3... Nxh6 {[%clk 0:02:55.5]} 4.
d4 {[%clk 0:02:43.9]} 4... e4 {[%clk 0:02:42.2]} 5. Bxh6 {[%clk 0:02:44.3]} 5...
gxh6 {[%clk 0:02:42]} 6. e3 {[%clk 0:02:41.3]} 6... Be6 {[%clk 0:02:34.9]} 7. c4
{[%clk 0:02:38.4]} 7... c6 {[%clk 0:02:34.6]} 8. Nc3 {[%clk 0:02:38.7]} 8... Nd7
{[%clk 0:02:30.4]} 9. Qb3 {[%clk 0:02:36.5]} 9... Nf6 {[%clk 0:02:29]} 10. Qxb7
{[%clk 0:02:33.9]} 10... Qc8 {[%clk 0:02:27.2]} 11. Qxc8+ {[%clk 0:02:33.3]}
11... Rxc8 {[%clk 0:02:26.7]} 12. c5 {[%clk 0:02:33.8]} 12... h5 {[%clk
0:02:21.7]} 13. b4 {[%clk 0:02:32.6]} 13... Be7 {[%clk 0:02:13.3]} 14. a4 {[%clk
0:02:27.3]} 14... O-O {[%clk 0:02:11.2]} 15. b5 {[%clk 0:02:26.2]} 15... Bd7
{[%clk 0:02:09.5]} 16. Nge2 {[%clk 0:02:24.6]} 16... Rb8 {[%clk 0:02:00.5]} 17.
Nf4 {[%clk 0:02:23.9]} 17... Bd8 {[%clk 0:01:59.9]} 18. Nxh5 {[%clk 0:02:16.7]}
18... Nxh5 {[%clk 0:01:59.3]} 19. Rxh5 {[%clk 0:02:17.4]} 19... Ba5 {[%clk
0:01:58.7]} 20. Kd2 {[%clk 0:02:17.6]} 20... cxb5 {[%clk 0:01:57]} 21. axb5
{[%clk 0:02:17.2]} 21... Bxc3+ {[%clk 0:01:56]} 22. Kxc3 {[%clk 0:02:16.7]}
22... Bxb5 {[%clk 0:01:55.8]} 23. Bxb5 {[%clk 0:02:15.9]} 23... Rxb5 {[%clk
0:01:55.7]} 24. Rxd5 {[%clk 0:02:15.5]} 24... Rfb8 {[%clk 0:01:55.3]} 25. Ra2
{[%clk 0:02:11.4]} 25... Rb1 {[%clk 0:01:53.6]} 26. Re5 {[%clk 0:02:08]} 26...
Rc1+ {[%clk 0:01:50.5]} 27. Rc2 {[%clk 0:02:07.2]} 27... Rg1 {[%clk 0:01:45.5]}
28. g3 {[%clk 0:02:04.3]} 28... a5 {[%clk 0:01:40.5]} 29. Rxe4 {[%clk
0:02:04.1]} 29... a4 {[%clk 0:01:40.7]} 30. d5 {[%clk 0:02:04.3]} 30... Rb3+
{[%clk 0:01:39.5]} 31. Kd4 {[%clk 0:01:59.5]} 31... Rd1+ {[%clk 0:01:38.5]} 32.
Ke5 {[%clk 0:01:59.4]} 32... a3 {[%clk 0:01:38.3]} 33. Ra2 {[%clk 0:01:55.2]}
33... Kg7 {[%clk 0:01:29.8]} 34. Rg4+ {[%clk 0:01:51.1]} 34... Kh6 {[%clk
0:01:28.8]} 35. e4 {[%clk 0:01:44.2]} 35... Rdd3 {[%clk 0:01:24.2]} 36. f4
{[%clk 0:01:40.5]} 36... Rb2 {[%clk 0:01:24]} 37. Ra1 {[%clk 0:01:39.9]} 37...
a2 {[%clk 0:01:23.6]} 38. Rh1+ {[%clk 0:01:38.6]} 1-0

[Event "Late-Titled-Tuesday-Blitz-January-30-2024"]
[Site "Chess.com"]
[Date "2024.01.30"]
[Round "9"]
[White "jk13"]
[Black "NovakRatko"]
[Result "1-0"]
[WhiteElo "2673"]
[BlackElo "2391"]
[TimeControl "180+1"]
[EndTime "15:42:04 PST"]
[Termination "jk13 won by resignation"]

1. e4 {[%clk 0:02:59.5]} 1... d5 {[%clk 0:01:42.7]} 2. exd5 {[%clk 0:02:50.3]}
2... c6 {[%clk 0:01:41.9]} 3. d4 {[%clk 0:02:49]} 3... c5 {[%clk 0:01:41.5]} 4.
dxc5 {[%clk 0:02:47.7]} 4... Nf6 {[%clk 0:01:41.5]} 5. c4 {[%clk 0:02:46.8]}
5... e5 {[%clk 0:01:37.4]} 6. Nf3 {[%clk 0:02:31.3]} 6... Bxc5 {[%clk
0:01:36.5]} 7. Be2 {[%clk 0:02:30.1]} 7... e4 {[%clk 0:01:35.7]} 8. Nd4 {[%clk
0:01:44.4]} 8... O-O {[%clk 0:01:24.8]} 9. O-O {[%clk 0:01:44]} 9... a6 {[%clk
0:01:25]} 10. Nc3 {[%clk 0:01:42.6]} 10... b5 {[%clk 0:01:21]} 11. cxb5 {[%clk
0:01:31.3]} 11... Nxd5 {[%clk 0:01:20]} 12. Nxe4 {[%clk 0:01:29.2]} 12... Ba7
{[%clk 0:01:11.8]} 13. Bg5 {[%clk 0:01:19.9]} 13... f5 {[%clk 0:00:48.7]} 14.
Bxd8 {[%clk 0:01:19]} 14... Ne3 {[%clk 0:00:41.3]} 15. fxe3 {[%clk 0:01:18.5]}
15... Bb6 {[%clk 0:00:40.8]} 16. Bxb6 {[%clk 0:01:18]} 16... Rd8 {[%clk
0:00:40.4]} 17. Qb3+ {[%clk 0:01:17.5]} 17... Be6 {[%clk 0:00:39.6]} 18. Qxe6+
{[%clk 0:01:17.1]} 1-0

[Event "Late-Titled-Tuesday-Blitz-January-30-2024"]
[Site "Chess.com"]
[Date "2024.01.30"]
[Round "9"]
[White "akanga001"]
[Black "BestestBP"]
[Result "0-1"]
[WhiteElo "1996"]
[BlackElo "2263"]
[TimeControl "180+1"]
[EndTime "15:42:07 PST"]
[Termination "BestestBP won on time"]

1. d4 {[%clk 0:00:20.3]} 1... Nf6 {[%clk 0:02:57.9]} 2. c4 {[%clk 0:00:20.8]}
2... e6 {[%clk 0:02:55.5]} 3. Nf3 {[%clk 0:00:20.3]} 3... Bb4+ {[%clk
0:02:54.2]} 4. Nbd2 {[%clk 0:00:19.5]} 4... O-O {[%clk 0:02:52.8]} 5. a3 {[%clk
0:00:17]} 5... Bxd2+ {[%clk 0:02:50.4]} 6. Bxd2 {[%clk 0:00:17.9]} 6... d5
{[%clk 0:02:50.9]} 7. e3 {[%clk 0:00:16.7]} 7... c5 {[%clk 0:02:49.4]} 8. Qc2
{[%clk 0:00:16.6]} 8... cxd4 {[%clk 0:02:47.5]} 9. exd4 {[%clk 0:00:16.4]} 9...
dxc4 {[%clk 0:02:46.7]} 10. Bxc4 {[%clk 0:00:16.7]} 10... Nc6 {[%clk 0:02:46.7]}
11. Be3 {[%clk 0:00:15.9]} 11... b6 {[%clk 0:02:42.2]} 12. O-O {[%clk 0:00:14]}
12... Bb7 {[%clk 0:02:41.7]} 13. Rad1 {[%clk 0:00:13.7]} 13... Rc8 {[%clk
0:02:41.9]} 14. Bg5 {[%clk 0:00:13.7]} 14... h6 {[%clk 0:02:41.3]} 15. Bh4
{[%clk 0:00:12.3]} 15... Na5 {[%clk 0:02:39.5]} 16. b3 {[%clk 0:00:07.6]} 16...
Bxf3 {[%clk 0:02:36.5]} 17. gxf3 {[%clk 0:00:06.7]} 17... b5 {[%clk 0:02:35.9]}
18. Bxf6 {[%clk 0:00:01.9]} 18... Qxf6 {[%clk 0:02:33.6]} 19. Qd2 {[%clk
0:00:02.5]} 19... Nxc4 {[%clk 0:02:23.2]} 20. bxc4 {[%clk 0:00:01.7]} 20... bxc4
{[%clk 0:02:24.1]} 21. d5 {[%clk 0:00:01.5]} 21... c3 {[%clk 0:02:21.8]} 22. Qd3
{[%clk 0:00:01.8]} 22... exd5 {[%clk 0:02:19.7]} 23. Qxd5 {[%clk 0:00:01.5]}
23... Rfd8 {[%clk 0:02:17.3]} 24. Qe4 {[%clk 0:00:01.3]} 24... Rxd1 {[%clk
0:02:13.5]} 25. Rxd1 {[%clk 0:00:02.2]} 25... c2 {[%clk 0:02:13.2]} 26. Rc1
{[%clk 0:00:03.1]} 26... Qg5+ {[%clk 0:02:13.6]} 0-1